{"text_format":"2","workbook":"xlsx","n_sheets":1,"sheets":["Fogászati anyagok 2020 táblázat"],"not_rendered":{"charts":0,"images":0,"macros":0,"external_links":0,"defined_names":0,"comments":0,"pivot_tables":0},"unopened":[],"bounds":{"document_bytes":16777216,"sheet_cells":100000,"run_cost":"one","rows_first":2000,"rows_last":500,"rows_between":2000,"halvings":0,"cell_chars":16384,"cell_head_chars":4096},"cells_cut":0,"cells_raw":0,"read":"whole","date_system":"1900"}

{"sheet":"Fogászati anyagok 2020 táblázat","index":0,"n_rows":183,"n_cols":8,"rows_kept":183,"cut":false,"hidden":false,"merged":[]}
[]
[]
[]
[null,"Megnevezés","Mennyiség","Mennyiségi egység","Nettó egys. Ár ( Ft. )","Nettó össz. Ár ( Ft. )","ÁFA ","Bruttó össz ár ( Ft.)"]
[null,"ApexCal 2x2,5g/csomag",6,"csomag",0,{"$f":"C5*E5","v":0},1.27,{"$f":"F5*G5","v":0}]
[null,"Curasept gél 30ml/db",3,"db",0,{"$f":"C6*E6","v":0},1.27,{"$f":"F6*G6","v":0}]
[null,"Dentin Conditioner 10% poliacril sav 25ml",1,"db",0,0,1.27,0]
[null,"Dorifill 12gr+15ml",3,"db",0,0,1.27,0]
[null,"Duracryl folyadék (250gr)",8,"db",0,0,1.27,0]
[null,"Duracryl por U (500gr)",1,"db",0,0,1.27,0]
[null,"Duracryl por (10kg) shade 5",1,"db",0,0,1.27,0]
[null,"Elmex gél ",5,"db",0,0,1.27,0]
[null,"Endocold spray",24,"doboz",0,0,1.27,0]
[null,"Faék készlet 4 színű Polydentia 5060 600db/doboz",2,"csomag",0,0,1.27,0]
[null,"Félkörös matrica szalag 11-es (12db/csomag)",2,"csomag",0,0,1.27,0]
[null,"Félkörös matrica szalag 12-es (12db/csomag)",1,"csomag",0,0,1.27,0]
[null,"Félkörös matrica szalag 13-as (12db/csomag)",1,"csomag",0,0,1.27,0]
[null,"Félkörös matrica szalag 14-es (12db/csomag)",1,"db",0,0,1.27,0]
[null,"Guttapercha poen 15-40 (6db/doboz)",4,"doboz",0,0,1.27,0]
[null,"Guttapercha poen 15 (6db/doboz)",2,"doboz",0,0,1.27,0]
[null,"Guttapercha poen 20 (6db/doboz)",4,"doboz",0,0,1.27,0]
[null,"Guttapercha poen 25 (6db/doboz)",2,"doboz",0,0,1.27,0]
[null,"Guttapercha poen 90-140 (6db/doboz)",5,"doboz",0,0,1.27,0]
[null,"Guttapercha poen 45-80 (6db/doboz)",4,"doboz",0,0,1.27,0]
[null,"Guttapercha Protaper F1 (6db/doboz)",4,"doboz",0,0,1.27,0]
[null,"Guttapercha Protaper F2 (6db/doboz)",2,"doboz",0,0,1.27,0]
[null,"Guttapercha Protaper F3 (6db/doboz)",2,"doboz",0,0,1.27,0]
[null,"Guttapercha Protaper F4 (6db/doboz)",2,"doboz",0,0,1.27,0]
[null,"Guttapercha Protaper F5 (6db/doboz)",2,"doboz",0,0,1.27,0]
[null,"Guttaperch papír poen 40 ",7,"doboz",0,0,1.27,0]
[null,"Glassix üvegszálas csap 1,1mm (6db/doboz)",2,"doboz",0,0,1.27,0]
[null,"Glyde intropack  A0902",4,"csomag",0,0,1.27,0]
[null,"Jelölőgyűrű sárga 50db/csomag",5,"csomag",0,0,1.27,0]
[null,"Jelölőgyűrű kék 50db/csomag",3,"csomag",0,0,1.27,0]
[null,"Modell gipsz fehér 20kg/zsák",4,"zsák",0,0,1.27,0]
[null,"Modelviasz orvosi (rózsa) puha, világosabb",3,"doboz",0,0,1.27,0]
[null,"Narancsolaj 250ml/flakon",2,"db",0,0,1.27,0]
[null,"NiTi Flex 15-40 (6db/doboz)",7,"doboz",0,0,1.27,0]
[null,"NiTi Flex 15 (6db/doboz)",8,"doboz",0,0,1.27,0]
[null,"NiTi Flex 20 (6db/doboz)",3,"doboz",0,0,1.27,0]
[null,"NiTi Flex 25 (6db/doboz)",2,"doboz",0,0,1.27,0]
[null,"NiTi Flex 30 (6db/doboz)",2,"doboz",0,0,1.27,0]
[null,"NiTi Flex 35 (6db/doboz)",2,"doboz",0,0,1.27,0]
[null,"NiTi Flex 40 (6db/doboz)",2,"doboz",0,0,1.27,0]
[null,"Nyálszívó 100db-os",40,"csomag",0,0,1.27,0]
[null,"Op-Dop plexi maszk 3 cserélhető lap/csomag",3,"db",0,0,1.27,0]
[null,"Oral B Satin Floss fogselyem",24,"db",0,0,1.27,0]
[null,"Oral B Super Floss fogselyem",6,"db",0,0,1.27,0]
[null,"Polírkefe Hawe mini nylon könyökbe normál",50,"db",0,0,1.27,0]
[null,"Prime gél",10,"db",0,0,1.27,0]
[null,"Septo Pack ínykötöző",2,"csomag",0,0,1.27,0]
[null,"Structur 2 SC keverőcsőr 50db/csomag",2,"csomag",0,0,1.27,0]
[null,"Reamer tágító tű 15-40 6db/doboz",4,"doboz",0,0,1.27,0]
[null,"Reamer tágító tű 45-80 6db/doboz",4,"doboz",0,0,1.27,0]
[null,"Spreader 20 (6db/doboz)",2,"doboz",0,0,1.27,0]
[null,"Spreader 25 (6db/doboz)",2,"doboz",0,0,1.27,0]
[null,"Spreader 30 (6db/doboz)",2,"doboz",0,0,1.27,0]
[null,"Vattarollni csomag",40,"csomag",0,0,1.27,0]
[null,"Celluloid csík KerrHawe Striproll 686 8mm",1,"db",0,0,1.27,0]
[null,"Celluloid csík KerrHawe Striproll 685 6mm",1,"db",0,0,1.27,0]
[null,"Csőmosó kefe sebészi szívóhoz",10,"db",0,0,1.27,0]
[null,"Depurátor kézi sarló alakú ASA 1909-H7",1,"db",0,0,1.27,0]
[null,"ASA S2804-8 lenyomatkanál szett",1,"db",0,0,1.27,0]
[null,"Edenta C141.104.023 surgical gömb",15,"db",0,0,1.27,0]
[null,"Edenta C162.104.016 surgical HP cutter",15,"db",0,0,1.27,0]
[null,"Edenta C22 204 016 ragasztó eltávolító",60,"db",0,0,1.27,0]
[null,"Fa spatula 100db/doboz",1,"db",0,0,1.27,0]
[null,"Felemás tömőműszer ASA 1208-1",4,"db",0,0,1.27,0]
[null,"Fogászati csipesz recézett",8,"db",0,0,1.27,0]
[null,"Fogászati szonda DA1406",16,"db",0,{"$f":"C70*E70","v":0},1.27,{"$f":"F70*G70","v":0}]
[null,"Fúró SG 837L.314 014",1,"db",0,0,1.27,0]
[null,"Fúró SG 837L.314 016",1,"db",0,0,1.27,0]
[null,"Fúró SG 850.314 018",1,"db",0,0,1.27,0]
[null,"Fúrótisztító rézkefe 27x60mm",20,"db",0,0,1.27,0]
[null,"Lenyomatkivágó DL101 szike-tunel",1,"db",0,0,1.27,0]
[null,"Hedström reszelő 15 (6db/doboz)",10,"db",0,0,1.27,0]
[null,"Hedström reszelő 15-40 (6db/doboz)",4,"db",0,0,1.27,0]
[null,"Hedström reszelő 20 (6db/doboz)",10,"db",0,0,1.27,0]
[null,"Hedström reszelő 25 (6db/doboz)",2,"db",0,0,1.27,0]
[null,"Hedström reszelő 30 (6db/doboz)",5,"db",0,0,1.27,0]
[null,"Heidemann spatula ASA 1100-3",7,"db",0,0,1.27,0]
[null,"Kofferdam feszítő ASA3031",5,"db",0,0,1.27,0]
[null,"Kofferdám gumi 15 x 15",20,"db",0,0,1.27,0]
[null,"Kofferdam kapocs 3051-212",10,"db",0,0,1.27,0]
[null,"Kofferdam kapocs 3052-9",10,"db",0,0,1.27,0]
[null,"Mikrobrush applikátor tips fine sárga",12,"db",0,0,1.27,0]
[null,"Mikrobrush applikátor tips regular lila",2,"db",0,0,1.27,0]
[null,"Mikrobrush applikátor tips regular zöld",16,"db",0,0,1.27,0]
[null,"Mini Endo Block A0327 tűbemérő Maillefer",2,"doboz",0,0,1.27,0]
[null,"M+W keverőcsőr citromsárga 00287 50db/csomag",1,"csomag",0,0,1.27,0]
[null,"Nyálkendő papír+műanyag 60db 53x80",9,"csomag",0,0,1.27,0]
[null,"Olló 14cm-es hajlított BC1157",20,"db",0,0,1.27,0]
[null,"Parodontológiai szonda Medesy CP15",10,"db",0,0,1.27,0]
[null,"Polírozó csík kétoldalas 6mm",2,"db",0,0,1.27,0]
[null,"Tena Bib nyálkendő S/M 150db/csomag",18,"db",0,0,1.27,0]
[null,"Tükörszem sík 12db/doboz",25,"csomag",0,0,1.27,0]
[null,"Védőszemüveg ",8,"db",0,0,1.27,0]
[null,"WH04363600 Hűtőfolyadék-tömlő szerelék WH Implantmotorhoz (6db/csomag)",2,"csomag",0,0,1.27,0]
[null,"Henke Dent 100 fém fecskendő",1,"db",0,0,1.27,0]
[null,"3M Transbond Plus gyűrűragasztó (4tubus/doboz)",2,"doboz",0,0,1.27,0]
[null,"Gombocska Leone F2870-900 10db/csomag",10,"csomag",0,0,1.27,0]
[null,"Leone Elastomer Protective tube K6940-07",2,"db",0,0,1.27,0]
[null,"Leone Elastomer Protective tube K6940-05",1,"db",0,0,1.27,0]
[null,"Fg gyémánt FG806 314 166 534 012   G859.314.012",20,"db",0,0,1.27,0]
[null,"Fg gyémánt FG806 314 158 534 016   G837KR.314.016",20,"db",0,0,1.27,0]
[null,"Fg gyémánt FG806 314 038 534 037   G811.314.037",20,"db",0,0,1.27,0]
[null,"Fg gyémánt FG806 314 158 514 016   F837KR.314.016",20,"db",0,0,1.27,0]
[null,"Fg gyémánt FG806 314 198 514 018   F856.314.018",20,"db",0,0,1.27,0]
[null,"Fg gyémánt FG806 314 198 534 018   G856.314.018",20,"db",0,0,1.27,0]
[null,"Fg gyémánt FG806 314 249 534 016   G862.314.016",20,"db",0,0,1.27,0]
[null,"Fg gyémánt FG806 314 289 534 016   G878.314.016",20,"db",0,0,1.27,0]
[null,"Fg gyémánt FG806 314 257 534 018   G368.314.018",20,"db",0,0,1.27,0]
[null,"Fg gyémánt FG806 314 289 514 016   F878.314.016",20,"db",0,0,1.27,0]
[null,"Fúrótartó Fg",20,"db",0,0,1.27,0]
[null,"ADC Porcelain etch gél 1,2ml",6,"db",0,0,1.27,0]
[null,"ADC Silan 1,2ml",6,"db",0,0,1.27,0]
[null,"Alginát",20,"db",0,0,1.27,0]
[null,"Alveogil gél 10gr",1,"db",0,0,1.27,0]
[null,"Caries Marker (Voco)",5,"db",0,0,1.27,0]
[null,"Cavit W ",19,"db",0,0,1.27,0]
[null,"Cavit G",6,"db",0,0,1.27,0]
[null,"Charisma Flow A2 1,8gr",24,"db",0,0,1.27,0]
[null,"Charisma Flow A3 1,8gr",10,"db",0,0,1.27,0]
[null,"Charisma Topaz A1 4gr",2,"db",0,0,1.27,0]
[null,"Charisma Topaz A2 4gr",24,"db",0,0,1.27,0]
[null,"Charisma Topaz A3 4gr",10,"db",0,0,1.27,0]
[null,"Charisma Topaz A3,5 4gr",2,"db",0,0,1.27,0]
[null,"Charisma Topaz PA3 4gr",2,"db",0,0,1.27,0]
[null,"Citodur kék lágy",12,"db",0,0,1.27,0]
[null,"Clip F Voco 2x4gr/doboz",1,"doboz",0,0,1.27,0]
[null,"DC Atzgel Maxi sav 20ml",7,"db",0,0,1.27,0]
[null,"Dycal Ivory (13gr+11gr)",3,"db",0,0,1.27,0]
[null,"Dyract Flow A2 2db/csomag",6,"csomag",0,0,1.27,0]
[null,"Dyract Flow A3 2db/csomag",2,"csomag",0,{"$f":"C134*E134","v":0},1.27,{"$f":"F134*G134","v":0}]
[null,"Dyract XP A2 (20x0,25gr capsz/doboz)",10,"doboz",0,0,1.27,0]
[null,"Dyract XP A3 (20x0,25gr capsz/doboz)",2,"doboz",0,0,1.27,0]
[null,"Etching gél 2gr",2,"db",0,0,1.27,0]
[null,"Eco Etch sav 2gr",44,"db",0,0,1.27,0]
[null,"Endomethasone por+folyadék",2,"db",0,0,1.27,0]
[null,"EverX Posterior 15x0,13ml",1,"db",0,0,1.27,0]
[null,"Filtek Ultimate Flowable A2 2db/csomag",1,"csomag",0,0,1.27,0]
[null,"Fuji I set cement + folyadék",1,"csomag",0,0,1.27,0]
[null,"Fuji II LC A2 kapszulás 50db/doboz",1,"doboz",0,0,1.27,0]
[null,"Fuji II LC A3 kapszulás 50db/doboz",1,"doboz",0,0,1.27,0]
[null,"Fuji IX A2 kapszulás 50db/doboz",1,"doboz",0,0,1.27,0]
[null,"Fuji IX A3 kapszulás 50db/doboz",1,"doboz",0,0,1.27,0]
[null,"Fuji IX A3 por + folyadék",7,"doboz",0,0,1.27,0]
[null,"GC Fuji Coat LC liquid 5gr",4,"db",0,0,1.27,0]
[null,"GC G-Premio Bond 5ml utántöltő",20,"db",0,0,1.27,0]
[null,"GC G-Premio Bond DCA 3ml ",2,"db",0,0,1.27,0]
[null,"Gradia Direct A2 4gr",3,"db",0,0,1.27,0]
[null,"Gradia Direct A3 4gr",3,"db",0,0,1.27,0]
[null,"Gradia Direct A3,5 4gr",1,"db",0,0,1.27,0]
[null,"Gradia Direct PA3 4gr",6,"db",0,0,1.27,0]
[null,"Gradia Flow A2 2x1,5gr",1,"db",0,0,1.27,0]
[null,"Gradia Flow A3 2x1,5gr",1,"db",0,0,1.27,0]
[null,"Helioseal F 1,25gr",20,"db",0,0,1.27,0]
[null,"Ionosit Baseliner 0,33/db",4,"db",0,0,1.27,0]
[null,"Kavitan LC 5gr (folyadék+12gr.por) A/2",2,"db",0,0,1.27,0]
[null,"Kavitan LC 5gr (folyadék+12gr.por) A/3",2,"db",0,0,1.27,0]
[null,"Ketac Molar 56633 Easymix A3",10,"db",0,0,1.27,0]
[null,"Ketac Cem radiopaque 33gr por+ 12ml foly.",2,"db",0,0,1.27,0]
[null,"Lastic 90 fine",2,"db",0,0,1.27,0]
[null,"Lastic katalizátor 60ml",2,"db",0,0,1.27,0]
[null,"Lastic médium 155ml",5,"db",0,0,1.27,0]
[null,"Luxatemp Automix A2",1,"db",0,0,1.27,0]
[null,"Luxatemp Inlay A2",1,"db",0,0,1.27,0]
[null,"Maxcem Elite Mini Kit 34057",4,"db",0,0,1.27,0]
[null,"Silagum AV Quick Light 2x50ml",3,"doboz",0,0,1.27,0]
[null,"Silagum AV Putty 2x262ml",6,"doboz",0,0,1.27,0]
[null,"Occufast Rock (2x50ml+12db keverőkanül)",6,"doboz",0,0,1.27,0]
[null,"Prophy Paste RDA40 sárga",1,"db",0,0,1.27,0]
[null,"Prophy Paste RDA120 piros",1,"db",0,0,1.27,0]
[null,"Prophy Paste RDA170 zöld",10,"db",0,0,1.27,0]
[null,"Structur 2 SC A2",2,"db",0,0,1.27,0]
[null,"Te-Econom Flow A2 ",6,"csomag",0,0,1.27,0]
[null,"Te-Econom Flow A3",5,"csomag",0,0,1.27,0]
[null,"Tector 10ml",9,"db",0,0,1.27,0]
[null,"Temp Bond NE 50gr+15gr",4,"csomag",0,0,1.27,0]
[null,"Voco Calcimol LC",4,"db",0,0,1.27,0]
[null,"Zetaplus 1,6 kg/doboz",4,"db",0,0,1.27,0]
[]
[null,"Összesen :",null,null,{"$f":"SUM(E5:E181)","v":0},{"$f":"SUM(F5:F181)","v":0},null,0]